[Event "CZE-ch U12 Open 2023"]
[Site "Teplice"]
[Date "2023.03.18"]
[Round "9.7"]
[White "Komarek, Tobias"]
[Black "Hladky, Mikulas"]
[Result "1-0"]
[ECO "A05"]
[WhiteElo "1515"]
[BlackElo "1476"]
[Annotator "NA RC COMBH"]
[PlyCount "73"]
[EventDate "2023.03.09"]
[EventType "swiss"]
[EventCountry "CZE"]
[SourceTitle "playchess.com"]
[Source "ChessBase"]
[SourceQuality "1"]
[TimeControl "40/5400+30:1800+30"]

1. Nf3 {[%emt 0:00:03]} Nf6 {[%emt 0:00:16]} 2. d4 {[%emt 0:00:12]} e6 {[%emt 0:00:16]} 3. c4 {[%emt 0:01:10]} d5 {[%emt 0:01:34]} 4. g3 {[%emt 0:01:19]} Bb4+ {[%emt 0:00:42]} 5. Bd2 {[%emt 0:01:36]} Be7 {[%emt 0:02:48]} 6. Bg2 {[%emt 0:01:05]} O-O {[%emt 0:00:25]} 7. O-O {[%emt 0:00:30]} c6 {[%emt 0:01:21]} 8. Qc2 {[%emt 0:01:25]} Nbd7 {[%emt 0:11:35]} 9. Be3 {[%emt 0:05:13]} dxc4 {[%emt 0:01:28]} 10. Qxc4 {[%emt 0:00:21]} Nb6 {[%emt 0:00:30]} 11. Qd3 {[%emt 0:01:26]} Qc7 {[%emt 0:03:15]} 12. Bf4 {[%emt 0:03:58]} Bd6 {[%emt 0:03:11]} 13. Bxd6 {[%emt 0:00:55]} Qxd6 {[%emt 0:00:41]} 14. Nc3 {[%emt 0:03:35]} Re8 {[%emt 0:04:22]} 15. Rfd1 {[%emt 0:08:20]} Qe7 {[%emt 0:01:42]} 16. Ng5 {[%emt 0:06:01]} h6 {[%emt 0:01:08]} 17. Nf3 {[%emt 0:01:05]} Bd7 {[%emt 0:03:23]} 18. Ne4 {[%emt 0:04:10]} Nxe4 {[%emt 0:01:21]} 19. Qxe4 {[%emt 0:00:09]} Rad8 {[%emt 0:00:35]} 20. Rac1 {[%emt 0:04:22]} Nd5 {[%emt 0:01:14]} 21. Ne5 {[%emt 0:02:03]} f6 {[%emt 0:02:18]} 22. Nc4 {[%emt 0:02:36]} Bc8 {[%emt 0:02:39]} 23. Ne3 {[%emt 0:01:46]} Rd7 {[%emt 0:01:27]} 24. Nxd5 {[%emt 0:02:13]} exd5 {[%emt 0:01:56]} 25. Qxe7 {[%emt 0:00:41]} Rdxe7 {[%emt 0:00:18]} 26. e3 {[%emt 0:00:20]} g5 {[%emt 0:00:51]} 27. Rc5 {[%emt 0:01:17]} a6 {[%emt 0:02:58]} 28. Rdc1 {[%emt 0:00:32]} Bd7 {[%emt 0:02:49]} 29. b4 {[%emt 0:05:02]} Ra8 {[%emt 0:03:15]} 30. a4 {[%emt 0:03:57]} b5 {[%emt 0:01:18]} 31. axb5 {[%emt 0:01:02]} axb5 {[%emt 0:00:16]} 32. Rxb5 {[%emt 0:01:21]} Kg7 {[%emt 0:02:06]} 33. Rb7 {[%emt 0:02:58]} Kf8 {[%emt 0:03:40]} 34. Rb6 {[%emt 0:01:00]} f5 {[%emt 0:01:00]} 35. b5 {[%emt 0:01:53]} cxb5 {[%emt 0:00:58]} 36. Bxd5 {[%emt 0:00:19]} Rae8 {[%emt 0:01:27]} 37. Rxh6 {[%emt 0:01:48]} 1-0

[Event "CZE-ch U12 Open 2023"]
[Site "Teplice"]
[Date "2023.03.18"]
[Round "9.8"]
[White "Rudlof, Adam"]
[Black "Rendl, Lubos"]
[Result "0-1"]
[ECO "B12"]
[WhiteElo "1409"]
[BlackElo "1477"]
[Annotator "NA RC COMBH"]
[PlyCount "118"]
[EventDate "2023.03.09"]
[EventType "swiss"]
[EventCountry "CZE"]
[SourceTitle "playchess.com"]
[Source "ChessBase"]
[SourceQuality "1"]
[TimeControl "40/5400+30:1800+30"]

1. e4 {[%emt 0:00:01]} c6 {[%emt 0:00:00]} 2. d4 {[%emt 0:00:00]} d5 {[%emt 0:00:07]} 3. f3 {[%emt 0:00:00]} Qb6 {[%emt 0:00:37]} 4. Nc3 {[%emt 0:00:03]} dxe4 {[%emt 0:00:38]} 5. fxe4 {[%emt 0:00:09]} e5 {[%emt 0:00:06]} 6. Nf3 {[%emt 0:00:25]} exd4 {[%emt 0:00:14]} 7. Nxd4 {[%emt 0:00:30]} Nf6 {[%emt 0:02:51]} 8. Bc4 {[%emt 0:05:37]} Bc5 {[%emt 0:01:59]} 9. Nb3 {[%emt 0:20:40]} Bf2+ {[%emt 0:00:59]} 10. Kf1 {[%emt 0:00:20]} a5 {[%emt 0:04:33]} 11. Qf3 {[%emt 0:10:45]} Bd4 {[%emt 0:06:36]} 12. Nxd4 {[%emt 0:01:04]} Qxd4 {[%emt 0:00:23]} 13. Bd3 {[%emt 0:00:31]} Bg4 {[%emt 0:13:38]} 14. Qg3 {[%emt 0:01:54]} O-O {[%emt 0:02:30]} 15. Be3 {[%emt 0:00:40]} Qb4 {[%emt 0:04:38]} 16. Rb1 {[%emt 0:01:50]} Bh5 {[%emt 0:05:08]} 17. a3 {[%emt 0:04:49]} Qe7 {[%emt 0:04:59]} 18. Bf4 {[%emt 0:08:16]} Re8 {[%emt 0:05:23]} 19. e5 {[%emt 0:18:43]} Nfd7 {[%emt 0:08:56]} 20. Re1 {[%emt 0:01:16]} Bg6 {[%emt 0:03:21]} 21. Ne4 {[%emt 0:01:36]} Nxe5 {[%emt 0:05:49]} 22. Bxe5 {[%emt 0:00:28]} Qxe5 {[%emt 0:00:18]} 23. Nf6+ {[%emt 0:00:31]} Qxf6+ {[%emt 0:00:26]} 24. Qf3 {[%emt 0:01:01]} Bxd3+ {[%emt 0:00:55]} 25. cxd3 {[%emt 0:00:08]} Qxf3+ {[%emt 0:00:13]} 26. gxf3 {[%emt 0:00:06]} Nd7 {[%emt 0:00:40]} 27. Kf2 {[%emt 0:00:05]} f6 {[%emt 0:00:24]} 28. Re4 {[%emt 0:00:22]} Rxe4 {[%emt 0:00:21]} 29. dxe4 {[%emt 0:00:09]} Ne5 {[%emt 0:00:41]} 30. Rd1 {[%emt 0:00:19]} b5 {[%emt 0:02:08]} 31. f4 {[%emt 0:00:21]} Nc4 {[%emt 0:00:47]} 32. b3 {[%emt 0:01:28]} Nxa3 {[%emt 0:02:39]} 33. Ra1 {[%emt 0:00:05]} b4 {[%emt 0:00:19]} 34. Rc1 {[%emt 0:00:15]} Re8 {[%emt 0:01:03]} 35. Ke3 {[%emt 0:00:25]} Re6 {[%emt 0:01:12]} 36. Rc5 {[%emt 0:00:38]} Nb5 {[%emt 0:00:42]} 37. e5 {[%emt 0:02:10]} fxe5 {[%emt 0:01:34]} 38. fxe5 {[%emt 0:00:06]} Kf7 {[%emt 0:00:25]} 39. Kf4 {[%emt 0:00:47]} Kg6 {[%emt 0:00:56]} 40. h4 {[%emt 0:00:50]} Kh5 {[%emt 0:01:08]} 41. Rc4 {[%emt 0:31:11]} g6 {[%emt 0:31:29]} 42. Rc1 {[%emt 0:00:34]} Nc3 {[%emt 0:01:21]} 43. Ra1 {[%emt 0:00:30]} Nd5+ {[%emt 0:00:42]} 44. Ke4 {[%emt 0:00:17]} h6 {[%emt 0:02:19]} 45. Re1 {[%emt 0:06:04]} Kxh4 {[%emt 0:05:08]} 46. Rh1+ {[%emt 0:00:08]} Kg3 {[%emt 0:00:12]} 47. Rxh6 Kf2 {[%emt 0:01:22]} 48. Rh8 {[%emt 0:01:47]} Ke2 {[%emt 0:01:04]} 49. Ra8 {[%emt 0:00:47]} Kd2 {[%emt 0:00:23]} 50. Rxa5 {[%emt 0:01:58]} Kc3 {[%emt 0:00:55]} 51. Rc5+ {[%emt 0:02:08]} Kxb3 {[%emt 0:00:11]} 52. Kd4 {[%emt 0:00:14]} Kb2 {[%emt 0:00:57]} 53. Kd3 {[%emt 0:00:26]} b3 {[%emt 0:01:41]} 54. Kd2 {[%emt 0:00:28]} g5 {[%emt 0:00:33]} 55. Rc4 {[%emt 0:00:29]} Kb1 {[%emt 0:01:10]} 56. Ra4 {[%emt 0:02:03]} Rxe5 {[%emt 0:01:32]} 57. Kd3 {[%emt 0:00:29]} b2 {[%emt 0:00:41]} 58. Kd2 {[%emt 0:00:15]} c5 {[%emt 0:00:45]} 59. Ra8 {[%emt 0:01:37]} c4 0-1

[Event "CZE-ch U12 Open 2023"]
[Site "Teplice"]
[Date "2023.03.18"]
[Round "9.10"]
[White "Tejnor, Martin"]
[Black "Sudrich, Radek"]
[Result "0-1"]
[ECO "B83"]
[WhiteElo "1360"]
[BlackElo "2054"]
[Annotator "TA"]
[PlyCount "104"]
[EventDate "2023.03.09"]
[EventType "swiss"]
[EventCountry "CZE"]
[SourceTitle "playchess.com"]
[Source "ChessBase"]
[SourceQuality "1"]
[TimeControl "40/5400+30:1800+30"]

{[%evp 18,104,0,21,22,-23,-9,-16,-15,-39,0,0,25,16,15,20,14,14,23,12,19,6,18,15,27,27,48,18,64,18,35,0,31,-20,-4,0,-10,-508,-141,-142,82,83,91,87,126,125,140,126,136,130,132,134,144,132,155,69,147,0,213,213,201,0,0,0,0,0,0,0,0,0,261,245,565,540,638,623,883,906,3006,552,497,-366,-280,-29988,-29989,-29989,-29990,-29990,-29991]} 1. e4 {[%emt 0:00:02]} c5 {[%emt 0:01:11]} 2. Nf3 {[%emt 0:00:08]} e6 {[%emt 0:00:06]} 3. Nc3 {[%emt 0:00:50]} Nc6 {[%emt 0:02:16]} 4. Be2 {[%emt 0:00:52]} d6 {[%emt 0:02:50]} 5. O-O {[%emt 0:00:42]} Nf6 {[%emt 0:02:17]} 6. d4 {[%emt 0:01:26]} cxd4 {[%emt 0:00:36]} 7. Nxd4 {[%emt 0:00:04]} Be7 {[%emt 0:02:52]} 8. Be3 {[%emt 0:00:29]} O-O {[%emt 0:08:25]} 9. f4 {[%emt 0:01:17]} e5 {[%emt 0:12:50]} 10. Nb3 {[%emt 0:14:28]} a6 {[%emt 0:02:17] B83: Sicilian Scheveningen: 6 Be2, lines without ...a6.} 11. Bf3 {[%emt 0:03:32]} exf4 {[%emt 0:02:23]} 12. Bxf4 {[%emt 0:00:45]} Ne5 {[%emt 0:00:31] The position is equal.} 13. Be2 {[%emt 0:04:57] [#]} Neg4 $146 {[%emt 0:03:25]} ({Predecessor:} 13... Be6 14. Qd4 Qc7 15. Rad1 Rfd8 16. Nc1 Bc4 17. Nd3 Rac8 18. Be3 Nxd3 19. cxd3 Be6 20. Rc1 Qb8 21. Bf3 Rc6 {0-1 Russell,J (1350)-Prieto,C (1022) IECG Q3.2000.0.00093}) 14. h3 {[%emt 0:04:41]} Qb6+ {[%emt 0:00:48]} 15. Qd4 {[%emt 0:00:20]} Qxd4+ {[%emt 0:00:32][%mdl 64] Remove Defender} 16. Nxd4 {[%emt 0:00:16]} Ne5 {[%emt 0:00:25]} 17. Rad1 {[%emt 0:00:34]} b5 {[%emt 0:03:11]} 18. Nf5 Bxf5 {[%emt 0:00:59]} 19. exf5 {[%emt 0:02:35]} Rac8 {[%emt 0:01:28]} 20. a3 {[%emt 0:03:06]} Rc7 {[%emt 0:06:15]} 21. Rfe1 {[%emt 0:06:55]} Re8 {[%emt 0:03:41]} 22. Kh1 {[%emt 0:03:46]} g6 {[%emt 0:02:17]} (22... h6 $11) 23. fxg6 {[%emt 0:04:26]} (23. g4 $14) 23... hxg6 $11 {[%emt 0:00:37]} 24. Bd3 {[%emt 0:01:25]} Bf8 {[%emt 0:01:34]} 25. Be4 {[%emt 0:03:41]} (25. Bf1 $14) 25... Nc4 {[%emt 0:02:21] Excellent horsemanship.} 26. Nd5 {[%emt 0:09:21]} Nxd5 {[%emt 0:01:16]} 27. Rxd5 {[%emt 0:01:58][%mdl 8192]} (27. Bxd5 $11 Rxe1+ 28. Rxe1) 27... f5 $2 {[%emt 0:00:55]} (27... Rce7 $19 28. b3 (28. Rd4 $2 Bg7 $19 {[%mdl 64] Skewer}) 28... Nxa3 29. Bxd6 Rxe4 30. Rxe4 Rxe4 31. Bxa3 Re1+ 32. Kh2 Bxa3) 28. Rxf5 $17 {[%emt 0:01:54] [#] Bd5+ is the strong threat.} Rxe4 {[%emt 0:00:50]} (28... Kg7 $1 $17 29. Rg5 Rce7 30. Rxg6+ Kf7) 29. Rxf8+ $16 {[%emt 0:00:43]} Kxf8 {[%emt 0:00:10]} 30. Rxe4 $17 {[%emt 0:00:07][%mdl 4096] Endgame KRB-KRN} Ne5 {[%emt 0:03:26]} 31. c3 {[%emt 0:03:16]} Rc5 {[%emt 0:01:31]} 32. Kg1 {[%emt 0:01:09]} Kf7 {[%emt 0:00:21]} 33. Bxe5 {[%emt 0:00:41]} dxe5 $16 {[%emt 0:02:22] KR-KR} 34. Kf2 {[%emt 0:03:50]} Kf6 {[%emt 0:00:45]} 35. a4 {[%emt 0:02:37]} Kf5 {[%emt 0:00:39]} 36. Rg4 {[%emt 0:01:54]} (36. Rb4 $16) 36... Rd5 {[%emt 0:00:50]} (36... e4 $1 $14) 37. Ke2 {[%emt 0:00:10]} ({White should play} 37. Ke3 $16) 37... g5 $2 {[%emt 0:00:45]} (37... e4 $1 $11 {and Black stays safe.}) 38. axb5 $18 {[%emt 0:00:08]} axb5 {[%emt 0:00:18]} 39. b3 $2 {[%emt 0:02:03]} ({White should try} 39. Ke3 $18) 39... e4 $11 {[%emt 0:01:24] ...Rd3 would be deadly.} 40. Rg3 {[%emt 0:00:58] Inhibits Rd3.} Kf4 {[%emt 0:00:22]} 41. Re3 {[%emt 0:30:18]} Re5 {[%emt 0:31:01]} 42. g3+ {[%emt 0:00:13]} Kf5 {[%emt 0:00:14]} 43. c4 {[%emt 0:00:15] Hoping for Rc3.} Rc5 $2 {[%emt 0:00:51][%mdl 8192] [#]} (43... b4 $11 {and Black is okay.}) 44. Rc3 $1 $18 {[%emt 0:00:39]} g4 $2 {[%emt 0:00:56]} (44... bxc4 {is a better chance.} 45. bxc4 Ke6) 45. h4 {[%emt 0:00:22] Threatens to win with b4.} Ke5 {[%emt 0:00:17]} 46. Ke3 {[%emt 0:00:08]} Rc8 {[%emt 0:00:10]} 47. c5 {[%emt 0:00:37] Strongly threatening c6.} Rf8 {[%emt 0:00:08]} 48. Ke2 {[%emt 0:01:36]} (48. c6 $142 Rf3+ 49. Kd2) 48... Kd4 {[%emt 0:00:36]} 49. Re3 {[%emt 0:00:46][%mdl 8192]} (49. Rc1 $18 {is the narrow road to win. And now c6 would win.} e3 50. Rf1) 49... Ra8 {[%emt 0:03:29] ( -> ...Ra2+)} 50. c6 $2 {[%emt 0:01:23]} (50. Kf2 $19 Rf8+ 51. Ke2) 50... Ra2+ {[%emt 0:00:14][%mdl 64] Deflection. Black mates.} 51. Kd1 {[%emt 0:00:14]} Kxe3 {[%emt 0:00:07]} 52. c7 {[%emt 0:00:12]} Ra8 {[%emt 0:00:07] A wild game.   Weighted Error Value: White=0.74/Black=0.80} 0-1

[Event "CZE-ch U12 Open 2023"]
[Site "Teplice"]
[Date "2023.03.18"]
[Round "9.11"]
[White "Mazurek, Richard"]
[Black "Kupka, Alexandr"]
[Result "0-1"]
[ECO "C44"]
[WhiteElo "1137"]
[BlackElo "1220"]
[Annotator "NA RC COMBH"]
[PlyCount "84"]
[EventDate "2023.03.09"]
[EventType "swiss"]
[EventCountry "CZE"]
[SourceTitle "playchess.com"]
[Source "ChessBase"]
[SourceQuality "1"]
[TimeControl "40/5400+30:1800+30"]

1. e4 {[%emt 0:00:33]} e5 {[%emt 0:00:08]} 2. Nf3 {[%emt 0:00:04]} Nc6 {[%emt 0:00:06]} 3. d4 {[%emt 0:00:04]} exd4 {[%emt 0:00:07]} 4. Nxd4 {[%emt 0:00:06]} Nf6 {[%emt 0:00:07]} 5. Nc3 {[%emt 0:00:05]} Bb4 {[%emt 0:00:11]} 6. Nxc6 {[%emt 0:00:12]} bxc6 {[%emt 0:00:21]} 7. Bd3 {[%emt 0:00:07]} d5 {[%emt 0:00:20]} 8. exd5 cxd5 {[%emt 0:00:05]} 9. O-O {[%emt 0:00:22]} O-O {[%emt 0:00:06]} 10. Bg5 {[%emt 0:00:04]} c6 {[%emt 0:00:22]} 11. Qf3 {[%emt 0:00:40]} Bd6 {[%emt 0:00:23]} 12. Bxf6 {[%emt 0:00:08]} Qxf6 {[%emt 0:00:18]} 13. Qxf6 {[%emt 0:00:05]} gxf6 {[%emt 0:00:07]} 14. Ne2 {[%emt 0:05:45]} Rb8 {[%emt 0:04:21]} 15. b3 {[%emt 0:01:39]} Re8 {[%emt 0:04:31]} 16. h3 {[%emt 0:02:58]} Be6 {[%emt 0:09:20]} 17. Rfe1 {[%emt 0:01:33]} c5 {[%emt 0:04:05]} 18. Rab1 {[%emt 0:03:38]} Rec8 {[%emt 0:16:41]} 19. Ng3 {[%emt 0:02:21]} Bxg3 20. fxg3 {[%emt 0:00:51]} c4 {[%emt 0:08:28]} 21. bxc4 {[%emt 0:01:20]} dxc4 {[%emt 0:02:37]} 22. Be4 {[%emt 0:00:16]} f5 {[%emt 0:05:38]} 23. Bf3 {[%emt 0:00:32]} Kg7 {[%emt 0:02:07]} 24. Kf2 {[%emt 0:00:47]} c3 25. a3 Rb2 {[%emt 0:06:23]} 26. Rec1 {[%emt 0:02:36]} Ba2 {[%emt 0:02:39]} 27. Ra1 {[%emt 0:00:12]} Bb3 {[%emt 0:01:12]} 28. Bd1 {[%emt 0:00:55]} Rd8 {[%emt 0:01:27]} 29. Ke1 {[%emt 0:00:49]} Ba4 {[%emt 0:01:32]} 30. Ke2 {[%emt 0:01:03]} Rd2+ {[%emt 0:00:17]} 31. Kf1 {[%emt 0:00:12]} Bb5+ {[%emt 0:01:21]} 32. Kg1 {[%emt 0:00:37]} Bc6 {[%emt 0:02:17]} 33. Bf3 {[%emt 0:00:31]} Be4 {[%emt 0:00:56]} 34. Bxe4 {[%emt 0:02:30]} fxe4 {[%emt 0:00:04]} 35. Kf1 {[%emt 0:00:08]} Rbxc2 {[%emt 0:04:03]} 36. Rxc2 {[%emt 0:00:23]} Rxc2 {[%emt 0:00:04]} 37. Re1 {[%emt 0:00:10]} Rd2 {[%emt 0:01:08]} 38. Rc1 {[%emt 0:00:23]} c2 {[%emt 0:01:23]} 39. Ke1 {[%emt 0:00:08]} e3 {[%emt 0:00:34]} 40. g4 {[%emt 0:00:26]} Rxg2 {[%emt 0:00:32]} 41. Kf1 {[%emt 0:30:50]} Rd2 {[%emt 0:30:48]} 42. Ke1 {[%emt 0:00:01]} Rh2 {[%emt 0:00:12]} 0-1

[Event "CZE-ch U12 Open 2023"]
[Site "Teplice"]
[Date "2023.03.18"]
[Round "9.12"]
[White "Frantsev, Iegor"]
[Black "Krisica, Lukas"]
[Result "1-0"]
[ECO "A45"]
[WhiteElo "1424"]
[BlackElo "1342"]
[Annotator "NA RC COMBH"]
[PlyCount "59"]
[EventDate "2023.03.09"]
[EventType "swiss"]
[EventCountry "CZE"]
[SourceTitle "playchess.com"]
[Source "ChessBase"]
[SourceQuality "1"]
[TimeControl "40/5400+30:1800+30"]

1. d4 {[%emt 0:00:32]} Nf6 {[%emt 0:00:47]} 2. Bf4 {[%emt 0:00:42]} g6 {[%emt 0:00:21]} 3. e3 {[%emt 0:00:08]} Bg7 {[%emt 0:00:32]} 4. Nf3 {[%emt 0:00:23]} c5 {[%emt 0:00:51]} 5. c3 {[%emt 0:00:10]} b6 {[%emt 0:03:00]} 6. Nbd2 {[%emt 0:00:27]} Bb7 {[%emt 0:01:56]} 7. h3 {[%emt 0:00:39]} d6 {[%emt 0:01:35]} 8. Be2 {[%emt 0:02:03]} Nbd7 {[%emt 0:03:48]} 9. O-O {[%emt 0:10:23]} O-O {[%emt 0:06:34]} 10. Re1 {[%emt 0:02:24]} Qc7 {[%emt 0:02:07]} 11. Rc1 {[%emt 0:01:32]} a6 {[%emt 0:01:14]} 12. Bd3 {[%emt 0:02:59]} e5 {[%emt 0:02:57]} 13. dxe5 {[%emt 0:00:50]} dxe5 {[%emt 0:01:02]} 14. Bh2 {[%emt 0:02:10]} Bc6 {[%emt 0:02:10]} 15. e4 {[%emt 0:01:26]} Rfe8 {[%emt 0:02:45]} 16. b4 {[%emt 0:14:02]} Qb7 {[%emt 0:02:56]} 17. Nc4 {[%emt 0:03:49]} Bf8 {[%emt 0:05:39]} 18. Ncxe5 {[%emt 0:07:41]} Nxe5 {[%emt 0:03:06]} 19. Nxe5 {[%emt 0:05:15]} Bxe4 {[%emt 0:03:19]} 20. Bxe4 {[%emt 0:02:59]} Nxe4 {[%emt 0:00:04]} 21. Qd7 {[%emt 0:03:16]} Qxd7 {[%emt 0:02:15]} 22. Nxd7 {[%emt 0:00:45]} Nxc3 {[%emt 0:00:30]} 23. Nf6+ {[%emt 0:02:26]} Kh8 {[%emt 0:01:31]} 24. Nxe8 {[%emt 0:00:12]} Nxa2 {[%emt 0:00:14]} 25. Be5+ {[%emt 0:03:27]} Kg8 {[%emt 0:00:11]} 26. Nf6+ {[%emt 0:00:22]} Kg7 {[%emt 0:00:50]} 27. Nd7+ {[%emt 0:00:53]} Kg8 {[%emt 0:00:16]} 28. Nxb6 {[%emt 0:04:02]} Nxc1 {[%emt 0:00:52]} 29. Nxa8 {[%emt 0:00:18]} Nd3 {[%emt 0:00:12]} 30. bxc5 {[%emt 0:05:43]} 1-0